{"text_format":"1","workbook":"xlsx","n_sheets":12,"sheets":["ACCUEIL","ETAPE1-local","ETAPE2-visuel","ETAPE3-énergie","ETAPE4-vétusté","ETAPE5-maintenance","RESULTAT","RECOMMANDATIONS","RENTABILITE","arbre decisionnel","rentabilité","graphes"],"not_rendered":{"charts":15,"images":11,"macros":1,"external_links":0,"defined_names":0,"comments":2,"pivot_tables":0},"unopened":[],"bounds":{"document_bytes":16777216,"sheet_cells":100000,"rows_first":2000,"rows_last":500,"rows_between":2000,"halvings":0,"cell_chars":16384,"cell_head_chars":4096},"cells_cut":0,"cells_raw":0,"read":"whole","date_system":"1900"}

{"sheet":"ACCUEIL","index":0,"n_rows":11,"n_cols":1,"rows_kept":11,"cut":false,"hidden":false,"merged":[[2,0,2,15],[4,0,4,15],[10,0,10,15],[11,0,11,16],[12,0,12,16],[8,0,8,15],[6,0,6,15]]}
[]
[]
["ETAPE #1: DESCRIPTION DU LOCAL"]
[]
["ETAPE #2 : EVALUATION DU CONFORT VISUEL DANS LE LOCAL"]
[]
["ETAPE#3 : EVALUATION DE LA PERFORMANCE ENERGETIQUE DE L'INSTALLATION"]
[]
["ETAPE #4 : EVALUATION DE LA VETUSTE DE L'INSTALLATION"]
[]
["ETAPE#5 : EVALUATION DE LA MAINTENANCE DE L'INSTALLATION"]

{"sheet":"ETAPE1-local","index":1,"n_rows":34,"n_cols":23,"rows_kept":34,"cut":false,"hidden":false,"merged":[[4,6,4,15],[3,0,3,18],[1,0,1,15],[14,0,14,18],[5,6,5,15],[6,6,6,15],[7,6,7,15],[8,6,8,15],[9,6,9,15]]}
[]
["ETAPE #1: DESCRIPTION DU LOCAL",null,null,null,null,null,null,null,null,null,null,null,null,null,null,null,null,{"$f":"U2","v":1},null,null,{"$f":"IF(AVERAGE(U23,U25,U26,U27,U30,U31,U32)=2,2,1)","v":1}]
[]
["Identification du local audité"]
["Nom de votre établissement",null,null,null,null,"optionel"]
["Date et heure de l'audit",null,null,null,null,"optionel"]
["Numéro du local audité",null,null,null,null,"optionel"]
["Type de local",null,null,null,null,null,null,null,null,null,null,null,null,null,null,null,null,null,null,null,null,null,{"$f":"G8","v":0}]
["Nombre de locaux représentés",null,null,null,null,"optionel"]
["Liste des locaux représentés",null,null,null,null,"optionel"]
["Type de ciel"]
["Eclairement horiz extérieur   (lux)"]
[]
[]
["Géométrie et aménagement du local"]
["Largeur de la classe",null,null,null,null,null,null,null,null,null,null,null,null,null,null,null,"m"]
["Profondeur de la classe",null,null,null,null,null,null,null,null,null,null,null,null,null,null,null,"m"]
["Hauteur du plafond",null,null,null,null,null,null,null,null,null,null,null,null,null,null,null,"m"]
["Le plafond est suspendu"]
[null,null,null,null,null,null,null,null,null,null,null,null,null,null,"Superficie de la classe",0,"m²"]
[null,null,null,null,null,null,null,null,null,null,null,null,null,null,"Volume de la classe",0,"m³"]
["Les peintures sont: "]
["Les peintures sont: ",null,null,null,null,null,null,null,null,null,null,null,null,null,null,null,null,{"$f":"U23","v":2},null,null,{"$f":"IF(P23=\"très colorées\",1,2)","v":2}]
["Couleur des murs (partie inférieure)"]
["Couleur des murs (partie supérieure)",null,null,null,null,null,null,null,null,null,null,null,null,null,null,null,null,{"$f":"U25","v":2},null,null,{"$f":"IF(P25=\"coloré\",1,2)","v":2}]
["Couleur du plafond",null,null,null,null,null,null,null,null,null,null,null,null,null,null,null,null,{"$f":"U26","v":2},null,null,{"$f":"IF(P26=\"coloré\",1,2)","v":2}]
["Couleur du sol",null,null,null,null,null,null,null,null,null,null,null,null,null,null,null,null,{"$f":"U27","v":2},null,null,{"$f":"IF(P27=\"foncé\",1,2)","v":2}]
["Les luminaires sont suspendus",null,null,null,null,null,null,null,null,null,null,null,null,null,null,null,null,{"$f":"U28","v":2},null,null,{"$f":"IF(AND(P18>4,P28=\"NON\"),1,2)","v":2}]
["La salle est équipée d'un ou de plusieurs tableaux"]
["Le tableau principal est perpendiculaire aux fenêtres principales",null,null,null,null,null,null,null,null,null,null,null,null,null,null,null,null,{"$f":"U30","v":2},null,null,{"$f":"IF(P30=\"non\",1,2)","v":2}]
["La salle est équipée d'un éclairage spécifique au(x) tableau(x)",null,null,null,null,null,null,null,null,null,null,null,null,null,null,null,null,{"$f":"U31","v":2},null,null,{"$f":"IF(P31=\"non\",0,2)","v":2}]
["Un ou plusieurs luminaires ou lampes d'appoint du local sont équipés de lampes à incandescence",null,null,null,null,null,null,null,null,null,null,null,null,null,null,null,null,{"$f":"U32","v":0},null,null,{"$f":"IF(P32=\"non\",2,0)","v":0}]
["Réseau électrique"]
[null,null,null,null,null,null,null,null,null,null,null,null,null,null,"Cout du kWh",{"$f":"IF(ISBLANK(P33),\"\",IFERROR(IF(P33=\"haute tension\",0.15,0.22),\"\"))","v":""},"€"]

{"sheet":"ETAPE2-visuel","index":2,"n_rows":87,"n_cols":35,"rows_kept":87,"cut":false,"hidden":false,"merged":[[1,0,1,18],[53,0,53,18],[7,0,7,18],[16,0,16,18],[25,0,25,18],[36,0,36,18],[42,0,42,18],[48,0,48,18],[4,0,4,18]]}
[]
["ETAPE #2 : EVALUATION DU CONFORT VISUEL DANS LE LOCAL",null,null,null,null,null,null,null,null,null,null,null,null,null,null,null,null,null,null,null,"VERDICT"]
[]
["> Niveau lumineux et uniformité suffisants",null,null,null,null,null,null,null,null,null,null,null,null,null,null,null,null,{"$f":"U4","v":{"$error":"#DIV/0!"}},null,null,{"$f":"IF(OR(U6=0,U35=0),0,IF(OR(U55=0,U56=0),1,2))","v":{"$error":"#DIV/0!"}}]
["Evaluation du niveau lumineux",null,null,null,null,null,null,null,null,null,null,null,null,null,null,null,null,null,null,null,null,null,"critère audit",null,null,"critère norme"]
["Niveau lumineux des bancs (éclairage artificiel uniquement)",null,null,null,null,null,null,null,null,null,null,null,null,null,null,{"$f":"IF(IFERROR(P16-P7,P25)=0,\"\",IFERROR(P16-P7,P25))","v":{"$error":"#DIV/0!"}},"lx",{"$f":"U6","v":{"$error":"#DIV/0!"}},null,null,{"$f":"IF(P6>W6,2,0)","v":{"$error":"#DIV/0!"}},null,{"$f":"Z6-0.1*Z6","v":{"$error":"#VALUE!"}},"lx",null,{"$f":"IF(OR(Z7=\"CLASSE MATERNELLE\",Z7=\"CLASSE PRIMAIRE\",Z7=\"CLASSE SECONDAIRE\"),300,IF(OR(Z7=\"CLASSE ADULTES\",Z7=\"BUREAUX\"),500,\"\"))","v":""},"lx"]
["1. Eclairage artificiel éteint",null,null,null,null,null,null,null,null,null,null,null,null,null,null,{"$f":"AVERAGE(B9:M14)","v":{"$error":"#DIV/0!"}},null,null,null,null,null,null,null,null,null,{"$f":"'ETAPE1-local'!G8","v":0}]
[]
["rangée n°6"]
["rangée n°5"]
["rangée n°4"]
["rangée n°3"]
["rangée n°2"]
["rangée n°1",null,null,null,null,null,null,null,null,null,null,null,null,null,"tableau"]
[]
["2.Eclairage artificiel allumé - si pas de sonde de luminosité",null,null,null,null,null,null,null,null,null,null,null,null,null,null,{"$f":"AVERAGE(B18:M23)","v":{"$error":"#DIV/0!"}}]
[]
["rangée n°6",null,null,null,null,null,null,null,null,null,null,null,null,null,null,null,null,null,null,null,null,null,"rangée n°1",{"$f":"B18-B9","v":0},0,0,0,0,0,0,0,0,0,0,0]
["rangée n°5",null,null,null,null,null,null,null,null,null,null,null,null,null,null,null,null,null,null,null,null,null,"rangée n°2",0,0,0,0,0,0,0,0,0,0,0,0]
["rangée n°4",null,null,null,null,null,null,null,null,null,null,null,null,null,null,null,null,null,null,null,null,null,"rangée n°3",0,0,0,0,0,0,0,0,0,0,0,0]
["rangée n°3",null,null,null,null,null,null,null,null,null,null,null,null,null,null,null,null,null,null,null,null,null,"rangée n°4",0,0,0,0,0,0,0,0,0,0,0,0]
["rangée n°2",null,null,null,null,null,null,null,null,null,null,null,null,null,null,null,null,null,null,null,null,null,"rangée n°5",0,0,0,0,0,0,0,0,0,0,0,0]
["rangée n°1",null,null,null,null,null,null,null,null,null,null,null,null,null,null,null,null,null,null,null,null,null,"rangée n°6",0,0,0,0,0,0,0,0,0,0,0,0]
[]
["3.Eclairage artificiel allumé - si sonde de luminosité",null,null,null,null,null,null,null,null,null,null,null,null,null,null,{"$f":"AVERAGE(B27:M32)","v":{"$error":"#DIV/0!"}}]
[]
["rangée n°6",null,null,null,null,null,null,null,null,null,null,null,null,null,null,null,null,null,null,null,null,null,"rangée n°1",{"$f":"B27","v":0},0,0,0,0,0,0,0,0,0,0,0]
["rangée n°5",null,null,null,null,null,null,null,null,null,null,null,null,null,null,null,null,null,null,null,null,null,"rangée n°2",0,0,0,0,0,0,0,0,0,0,0,0]
["rangée n°4",null,null,null,null,null,null,null,null,null,null,null,null,null,null,null,null,null,null,null,null,null,"rangée n°3",0,0,0,0,0,0,0,0,0,0,0,0]
["rangée n°3",null,null,null,null,null,null,null,null,null,null,null,null,null,null,null,null,null,null,null,null,null,"rangée n°4",0,0,0,0,0,0,0,0,0,0,0,0]
["rangée n°2",null,null,null,null,null,null,null,null,null,null,null,null,null,null,null,null,null,null,null,null,null,"rangée n°5",0,0,0,0,0,0,0,0,0,0,0,0]
["rangée n°1",null,null,null,null,null,null,null,null,null,null,null,null,null,null,null,null,null,null,null,null,null,"rangée n°6",0,0,0,0,0,0,0,0,0,0,0,0]
[]
[null,null,null,null,null,null,null,null,null,null,null,null,null,null,null,null,null,null,null,null,null,null,"critère audit",null,null,"critère norme"]
["Niveau lumineux du tableau (éclairage artificiel uniquement)",null,null,null,null,null,null,null,null,null,null,null,null,null,null,{"$f":"IF(IFERROR(P42-P36,P48)=0,\"\",IFERROR(P42-P36,P48))","v":{"$error":"#DIV/0!"}},"lx",{"$f":"U35","v":{"$error":"#DIV/0!"}},null,null,{"$f":"IF(P35>W35,2,0)","v":{"$error":"#DIV/0!"}},null,450,"lx",null,500,"lx"]
["1.Eclairage artificiel éteint",null,null,null,null,null,null,null,null,null,null,null,null,null,null,{"$f":"AVERAGE(B38:M40)","v":{"$error":"#DIV/0!"}}]
[]
["hauteur n°3 (haut)"]
["hauteur n°2 (milieu)"]
["hauteur n°1 (bas)"]
[]
["2.Eclairage artificiel allumé  - si pas de sonde de luminosité",null,null,null,null,null,null,null,null,null,null,null,null,null,null,{"$f":"AVERAGE(B44:M46)","v":{"$error":"#DIV/0!"}}]
[]
["hauteur n°3 (haut)",null,null,null,null,null,null,null,null,null,null,null,null,null,null,null,null,null,null,null,null,null,"hauteur n°1",{"$f":"B44-B38","v":0},0,0,0,0,0,0,0,0,0,0,0]
["hauteur n°2 (milieu)",null,null,null,null,null,null,null,null,null,null,null,null,null,null,null,null,null,null,null,null,null,"hauteur n°2",0,0,0,0,0,0,0,0,0,0,0,0]
["hauteur n°1 (bas)",null,null,null,null,null,null,null,null,null,null,null,null,null,null,null,null,null,null,null,null,null,"hauteur n°3",0,0,0,0,0,0,0,0,0,0,0,0]
[]
["3.Eclairage artificiel allumé  - si sonde de luminosité",null,null,null,null,null,null,null,null,null,null,null,null,null,null,{"$f":"AVERAGE(B50:M52)","v":{"$error":"#DIV/0!"}}]
[]
["hauteur n°3 (haut)",null,null,null,null,null,null,null,null,null,null,null,null,null,null,null,null,null,null,null,null,null,"hauteur n°1",{"$f":"B50","v":0},0,0,0,0,0,0,0,0,0,0,0]
["hauteur n°2 (milieu)",null,null,null,null,null,null,null,null,null,null,null,null,null,null,null,null,null,null,null,null,null,"hauteur n°2",0,0,0,0,0,0,0,0,0,0,0,0]
["hauteur n°1 (bas)",null,null,null,null,null,null,null,null,null,null,null,null,null,null,null,null,null,null,null,null,null,"hauteur n°3",0,0,0,0,0,0,0,0,0,0,0,0]
[]
["Evaluation de l'uniformité",null,null,null,null,null,null,null,null,null,null,null,null,null,null,null,null,null,null,null,null,null,"critère1 audit",null,"critère2 audit",null,"critère norme"]
["Uniformité sur les bancs (éclairage artificiel uniquement)",null,null,null,null,null,null,null,null,null,null,null,null,null,null,{"$f":"IF(SUM(W18:AH23)>0,MIN(IF(W18:AH23>0,W18:AH23))/AVERAGE(IF(W18:AH23>0,W18:AH23)),MIN(IF(W27:AH32>0,W27:AH32))/AVERAGE(IF(W27:AH32>0,W27:AH32)))","v":{"$error":"#DIV/0!"}},null,{"$f":"U55","v":{"$error":"#DIV/0!"}},null,null,{"$f":"IF(OR(P55>Y55, (MIN(X18:AE20)>=W55)),2,0)","v":{"$error":"#DIV/0!"}},null,{"$f":"0.6*W6","v":{"$error":"#VALUE!"}},"lx",0.5,null,0.6]
["Uniformité du tableau (éclairage artificiel uniquement)",null,null,null,null,null,null,null,null,null,null,null,null,null,null,{"$f":"IF(SUM(W44:AH46)>0,MIN(IF(W44:AH46>0,W44:AH46))/AVERAGE(IF(W44:AH46>0,W44:AH46)),MIN(IF(W50:AH52>0,W50:AH52))/AVERAGE(IF(W50:AH52>0,W50:AH52)))","v":{"$error":"#DIV/0!"}},null,{"$f":"U56","v":{"$error":"#DIV/0!"}},null,null,{"$f":"IF(P56>W56,2,0)","v":{"$error":"#DIV/0!"}},null,0.6,null,null,null,0.7]
[]
[]
["> Risques d'éblouissement faible",null,null,null,null,null,null,null,null,null,null,null,null,null,null,null,null,{"$f":"U59","v":0},null,null,{"$f":"IF(OR(U60=0,U61=0,U62=0,U63=0,U64=0),0,2)","v":0}]
["Assis à la place de quelques élèves, êtes-vous éblouis par les l'éclairage artificiel ? ",null,null,null,null,null,null,null,null,null,null,null,null,null,null,null,null,0,null,null,{"$f":"IF(P60=W60,2,0)","v":0},null,"Non"]
["Debout au tableau, face à la classe, êtes-vous ébloui par l'éclairage artificiel ?",null,null,null,null,null,null,null,null,null,null,null,null,null,null,null,null,0,null,null,{"$f":"IF(P61=W61,2,0)","v":0},null,"Non"]
["Les luminaires sont-ils de simples tubes nus ?",null,null,null,null,null,null,null,null,null,null,null,null,null,null,null,null,0,null,null,0,null,"Non"]
["A-t-on omis d'équiper les luminaires de ventelles, grille d'abeille, diffuseur opalin ou prismatique ?",null,null,null,null,null,null,null,null,null,null,null,null,null,null,null,null,0,null,null,0,null,"Non"]
["Si les luminaires sont munis de tubes LED clairs, leurs puces sont-elles visibles ? ",null,null,null,null,null,null,null,null,null,null,null,null,null,null,null,null,0,null,null,0,null,"Non"]
[]
[]
["> Non-présence de reflets ",null,null,null,null,null,null,null,null,null,null,null,null,null,null,null,null,{"$f":"U67","v":1},null,null,{"$f":"IF(OR(U68=1,U69=1,U70=1,U71=1,U72=1,U73=1),1,2)","v":1}]
["Assis à la place de quelques élèves, percevez-vous des reflets sur le tableau ou les posters autour ? ",null,null,null,null,null,null,null,null,null,null,null,null,null,null,null,null,{"$f":"U68","v":1},null,null,{"$f":"IF(P68=W68,2,1)","v":1},null,"Non"]
["Le tableau est-il mat ? ",null,null,null,null,null,null,null,null,null,null,null,null,null,null,null,null,1,null,null,{"$f":"IF(P69=W69,2,1)","v":1},null,"Oui"]
["Le mobilier est-il mat ? ",null,null,null,null,null,null,null,null,null,null,null,null,null,null,null,null,1,null,null,1,null,"Oui"]
["Le sol est-il mat ? ",null,null,null,null,null,null,null,null,null,null,null,null,null,null,null,null,1,null,null,1,null,"Oui"]
["Les murs sont-ils peints avec des couleurs mates ? ",null,null,null,null,null,null,null,null,null,null,null,null,null,null,null,null,1,null,null,1,null,"Oui"]
["Les fenêtres sont-elles munies de rideaux ou de stores ? ",null,null,null,null,null,null,null,null,null,null,null,null,null,null,null,null,1,null,null,1,null,"Oui"]
[]
[]
["> Non-présence d'ombres portées",null,null,null,null,null,null,null,null,null,null,null,null,null,null,null,null,{"$f":"U76","v":2},null,null,{"$f":"IF(OR(U77=1,U78=1,U79=1),1,2)","v":2}]
["Assis à la place de quelques élèves, observez-vous la présence d'ombres génantes ?",null,null,null,null,null,null,null,null,null,null,null,null,null,null,null,null,{"$f":"U77","v":0},null,null,null,null,"Non"]
["Les luminanires sont-ils placés dans le dos des occupants ? ",null,null,null,null,null,null,null,null,null,null,null,null,null,null,null,null,0,null,null,{"$f":"IF(P78=W78,2,0)","v":0},null,"Non"]
["La lumière produite par les luminaires est-elle très directive ?",null,null,null,null,null,null,null,null,null,null,null,null,null,null,null,null,0,null,null,0,null,"Non"]
[]
[]
["> Température de couleur des lampes apropriée",null,null,null,null,null,null,null,null,null,null,null,null,null,null,null,null,{"$f":"U82","v":{"$error":"#VALUE!"}},null,null,{"$f":"U83","v":{"$error":"#VALUE!"}},null,"critère1 audit",null,"critère2 audit","critère norme"]
["Quelle est la température de couleur majoritairement rencontrée dans la classe?",null,null,null,null,null,null,null,null,null,null,null,null,null,null,null,"K",{"$f":"U83","v":{"$error":"#VALUE!"}},null,null,{"$f":"IF(AND(P83>=W83,P83<=Y83),2,1)","v":{"$error":"#VALUE!"}},null,{"$f":"Z83-0.1*Z83","v":{"$error":"#VALUE!"}},"K",{"$f":"Z83+0.1*Z83","v":{"$error":"#VALUE!"}},{"$f":"IF(OR(Z85=\"CLASSE MATERNELLE\",Z85=\"CLASSE PRIMAIRE\"),3000,IF(OR(Z85=\"CLASSE ADULTES\",Z85=\"CLASSE SECONDAIRE\"),5000,IF(Z85=\"BUREAUX\",4000,\"t\")))","v":"t"},"lx","K"]
[]
[null,null,null,null,null,null,null,null,null,null,null,null,null,null,null,null,null,null,null,null,null,null,null,null,null,{"$f":"'ETAPE1-local'!G8","v":0}]
["> Rendu des couleurs aproprié",null,null,null,null,null,null,null,null,null,null,null,null,null,null,null,null,{"$f":"U86","v":1},null,null,{"$f":"U87","v":1}]
["Quelle est le rendu des couleurs majoritairement rencontré dans la classe?",null,null,null,null,null,null,null,null,null,null,null,null,null,null,null,null,{"$f":"U87","v":1},null,null,{"$f":"IF(P87>=W87,2,1)","v":1},null,80]

{"sheet":"ETAPE3-énergie","index":3,"n_rows":43,"n_cols":25,"rows_kept":43,"cut":false,"hidden":false,"merged":[[39,15,39,16],[40,15,40,16],[41,15,41,16],[42,15,42,16],[1,0,1,15],[34,15,34,16],[35,15,35,16],[36,15,36,16],[37,15,37,16]]}
[]
["EVALUATION DE LA PERFORMANCE ENERGETIQUE DE L'INSTALLATION",null,null,null,null,null,null,null,null,null,null,null,null,null,null,null,null,null,null,null,null,null,"critère audit"]
[]
["> Puissance installée spécifique",null,null,null,null,null,null,null,null,null,null,null,null,null,null,{"$f":"IFERROR((P5+P15)/'ETAPE1-local'!P20/'ETAPE2-visuel'!P6*100,\"\")","v":""},null,{"$f":"U4","v":0},null,null,{"$f":"IF(P4<=W4,2,IF(P4>W4,0,1))","v":0},null,1.5]
["Eclairage de la salle de classe",null,null,null,null,null,null,null,null,null,null,null,null,null,null,{"$f":"IFERROR(P6*P8*(P11*W12),\"\")","v":0},"W"]
["Nombre de luminaires"]
["Longueur des lampes"]
["Nb lampe/luminaire"]
["Nb ballast/luminaire"]
["Type de lampe"]
["Puissance des lampes",null,null,null,null,null,null,null,null,null,null,null,null,null,null,null,null,null,null,null,null,null,null,null,"relighting"]
["Type de ballast",null,null,null,null,null,null,null,null,null,null,null,null,null,null,null,null,{"$f":"U12","v":2},"W",null,{"$f":"IF(P12=Y12,1,2)","v":2},null,{"$f":"IF(P12=\"électromagnétique\",1.2,1.1)","v":1.1000000000000001},null,"électromagnétique"]
["Nombre de sonde de luminosité dans le local"]
["Nombre de détecteurs de présence/absence"]
["Eclairage spécifique du tableau",null,null,null,null,null,null,null,null,null,null,null,null,null,null,{"$f":"IFERROR(P16*P18*(P21+W22),\"\")","v":0},"W"]
["Nombre de luminaires"]
["Longueur des lampes"]
["Nb lampe/luminaire"]
["Nb ballast/luminaire"]
["Type de lampe"]
["Puissance des lampes"]
["Type de ballast",null,null,null,null,null,null,null,null,null,null,null,null,null,null,null,null,null,"W",null,null,null,{"$f":"IF(P22=\"électromagnétique\",1.2,1.1)","v":1.1000000000000001}]
[null,null,null,null,null,null,null,null,null,null,null,null,null,null,"facteur de perte du ballast"]
["Les luminaires vous paraissent efficaces",null,null,null,null,null,null,null,null,null,null,null,null,null,null,null,null,{"$f":"U24","v":1},null,null,{"$f":"IF(P24=W24,2,1)","v":1},null,"oui"]
["Les auxiliaires vous paraissent efficaces",null,null,null,null,null,null,null,null,null,null,null,null,null,null,null,null,{"$f":"U25","v":1},null,null,{"$f":"IF(P25=W25,2,1)","v":1},null,"oui"]
["Les lampes vous paraissent efficaces",null,null,null,null,null,null,null,null,null,null,null,null,null,null,null,null,{"$f":"U26","v":1},null,null,{"$f":"IF(P26=W26,2,1)","v":1},null,"oui"]
[]
[]
["> Non-surdimensionnement de l'installation",null,null,null,null,null,null,null,null,null,null,null,null,null,null,null,null,{"$f":"U29","v":{"$error":"#DIV/0!"}},null,null,{"$f":"U30","v":{"$error":"#DIV/0!"}},null,"critère audit"]
["Niveau lumineux des bancs",null,null,null,null,null,null,null,null,null,null,null,null,null,null,{"$f":"'ETAPE2-visuel'!P6","v":{"$error":"#DIV/0!"}},"lx",{"$f":"U30","v":{"$error":"#DIV/0!"}},null,null,{"$f":"IF(P30>=W30,1,2)","v":{"$error":"#DIV/0!"}},null,{"$f":"1.1*500","v":550},null,"lx"]
[]
[]
["> Efficacité du système de gestion de l'éclairage",null,null,null,null,null,null,null,null,null,null,null,null,null,null,null,null,{"$f":"U33","v":1},null,null,{"$f":"IF(OR(U35=1,U36=1,U37=1,U38=1,U40=1,U41=1,U42=1,U43=1),1,2)","v":1},null,1]
["Evaluation du comportement de l'occupant"]
["A votre arrivée dans le local, l'éclairage artificiel était allumé ? ",null,null,null,null,null,null,null,null,null,null,null,null,null,null,null,null,{"$f":"U35","v":1},null,null,{"$f":"IF(P35=W35,2,1)","v":1},null,"non"]
["Le local est-il parfois éclairé artificiellement alors qu'il est inoccupé ?",null,null,null,null,null,null,null,null,null,null,null,null,null,null,null,null,{"$f":"U36","v":1},null,null,{"$f":"IF(P36=W36,2,1)","v":1},null,"non"]
["Des affiches, posters, photographies sont-ils collés sur les fenêtres?",null,null,null,null,null,null,null,null,null,null,null,null,null,null,null,null,{"$f":"U37","v":1},null,null,1,null,"non"]
["Le local est-il souvent éclairé alors que l’éclairage naturel est suffisant ?",null,null,null,null,null,null,null,null,null,null,null,null,null,null,null,null,{"$f":"U38","v":1},null,null,1,null,"non"]
["Evaluation des possibilités offertes par l'installation"]
["A votre arrivée dans le local, l'éclairage artificiel s'est allumé automatiquement ? ",null,null,null,null,null,null,null,null,null,null,null,null,null,null,null,null,{"$f":"U40","v":1},null,null,{"$f":"IF(P40=W40,2,1)","v":1},null,"oui"]
["Les interrupteurs sont différenciés pour l'éclairage général et l'éclairage du tableau",null,null,null,null,null,null,null,null,null,null,null,null,null,null,null,null,{"$f":"U41","v":2},null,null,{"$f":"IF(P41=W41,2,IF(P41=\"non\",1,IF(P41=\"il n'y a pas d'éclairage du tableau\",0,2)))","v":2},null,"oui"]
["Est-il possible de n'allumer que les luminaires éloignés des fenêtres ? ",null,null,null,null,null,null,null,null,null,null,null,null,null,null,null,null,{"$f":"U42","v":1},null,null,{"$f":"IF(OR(P42=W42,P42=X42),2,1)","v":1},null,"oui","l'éclairage est automatisé"]
["L'éclairage est-il gradué automatiquement en fonction de la lumière naturelle dans le local ?",null,null,null,null,null,null,null,null,null,null,null,null,null,null,null,null,{"$f":"U43","v":1},null,null,{"$f":"IF(P43=W43,2,1)","v":1},null,"oui"]

{"sheet":"ETAPE4-vétusté","index":4,"n_rows":9,"n_cols":23,"rows_kept":9,"cut":false,"hidden":false,"merged":[[1,0,1,15]]}
[]
["EVALUATION DE LA VETUSTE DE L'INSTALLATION",null,null,null,null,null,null,null,null,null,null,null,null,null,null,null,null,{"$f":"U2","v":2},null,null,{"$f":"IF(OR(U5=0,U6=0,U7=0,U8=0,U9=0),0,2)","v":2}]
[]
[]
["Etat des luminaires",null,null,null,null,null,null,null,null,null,null,null,null,null,null,null,null,{"$f":"U5","v":2},null,null,{"$f":"IF(P5=W5,0,2)","v":2},null,"vétustes"]
["Les plastiques des luminanires sont-ils cassants ? ",null,null,null,null,null,null,null,null,null,null,null,null,null,null,null,null,{"$f":"U6","v":1},null,null,{"$f":"IF(P6=W6,2,1)","v":1},null,"Non"]
["Les optiques (ventelles, gaufres, ou coques opalines) sont-elles cassées ? ",null,null,null,null,null,null,null,null,null,null,null,null,null,null,null,null,{"$f":"U7","v":1},null,null,1,null,"Non"]
["Certaines optiques pendent-elles des luminaires ? ",null,null,null,null,null,null,null,null,null,null,null,null,null,null,null,null,{"$f":"U8","v":1},null,null,1,null,"Non"]
["Les luminaires sont-ils munis de tubes FLUO T12 ?",null,null,null,null,null,null,null,null,null,null,null,null,null,null,null,null,{"$f":"U9","v":1},null,null,1,null,"Non"]

{"sheet":"ETAPE5-maintenance","index":5,"n_rows":10,"n_cols":23,"rows_kept":10,"cut":false,"hidden":false,"merged":[[1,0,1,15]]}
[]
["EVALUATION DE LA MAINTENANCE DE L'INSTALLATION",null,null,null,null,null,null,null,null,null,null,null,null,null,null,null,null,{"$f":"U2","v":1},null,null,{"$f":"IF(OR(U5=1,U6=1,U7=1,U8=1,U9=1,U10=1),1,2)","v":1}]
[]
[]
["Certaines lampes ne s'allument plus",null,null,null,null,null,null,null,null,null,null,null,null,null,null,null,null,{"$f":"U5","v":1},null,null,{"$f":"IF(P5=W5,2,1)","v":1},null,"Non"]
["Des lampes clignotent",null,null,null,null,null,null,null,null,null,null,null,null,null,null,null,null,{"$f":"U6","v":1},null,null,{"$f":"IF(P6=W6,2,1)","v":1},null,"Non"]
["Des lampes ont des bouts rouges",null,null,null,null,null,null,null,null,null,null,null,null,null,null,null,null,1,null,null,1,null,"Non"]
["Des luminaires émettent des bourdonnements",null,null,null,null,null,null,null,null,null,null,null,null,null,null,null,null,1,null,null,1,null,"Non"]
["Les lampes n'émettent pas une lumière de la même couleur",null,null,null,null,null,null,null,null,null,null,null,null,null,null,null,null,1,null,null,1,null,"Non"]
["Une couche de poussière recouvre les lampes",null,null,null,null,null,null,null,null,null,null,null,null,null,null,null,null,1,null,null,1,null,"Non"]

{"sheet":"RESULTAT","index":6,"n_rows":25,"n_cols":20,"rows_kept":25,"cut":false,"hidden":false,"merged":[[3,0,3,14]]}
[]
[]
[]
["RESUME DE L'ANALYSE"]
[]
[null,"ETAPE #1: DESCRIPTION DU LOCAL",null,null,null,null,null,null,null,null,null,null,null,null,null,{"$f":"'ETAPE1-local'!R2","v":1},null,null,null,{"$f":"IF(OR(#REF!=0,#REF!=0,#REF!=0,#REF!=0, T23=0),\"Nous vous recommandons un relighting complet de l'installation pour la ou les raisons suivantes:\",\"Des actions ponctuelles vous permettraient d'améliorer votre installation qui n'est pas satisfaisante pour les raisons suivantes:\")","v":{"$error":"#REF!"}}]
[]
[null,"ETAPE #2 : EVALUATION DU CONFORT VISUEL DANS LE LOCAL"]
[null,"> Niveau lumineux et uniformité suffisants",null,null,null,null,null,null,null,null,null,null,null,null,null,{"$f":"'ETAPE2-visuel'!R4","v":{"$error":"#DIV/0!"}}]
[null,"> Risques d'éblouissement faible",null,null,null,null,null,null,null,null,null,null,null,null,null,{"$f":"'ETAPE2-visuel'!R59","v":0}]
[null,"> Non-présence de reflets ",null,null,null,null,null,null,null,null,null,null,null,null,null,{"$f":"'ETAPE2-visuel'!R67","v":1}]
[null,"> Non-présence d'ombres portées",null,null,null,null,null,null,null,null,null,null,null,null,null,{"$f":"'ETAPE2-visuel'!R76","v":2}]
[null,"> Température de couleur des lampes apropriée",null,null,null,null,null,null,null,null,null,null,null,null,null,{"$f":"'ETAPE2-visuel'!R82","v":{"$error":"#VALUE!"}}]
[null,"> Rendu des couleurs aproprié",null,null,null,null,null,null,null,null,null,null,null,null,null,{"$f":"'ETAPE2-visuel'!R86","v":1}]
[]
[]
[null,"ETAPE#3 : EVALUATION DE LA PERFORMANCE ENERGETIQUE DE L'INSTALLATION"]
[null,"> Puissance installée spécifique",null,null,null,null,null,null,null,null,null,null,null,null,null,{"$f":"'ETAPE3-énergie'!R4","v":0}]
[null,"> Non-surdimensionnement de l'installation",null,null,null,null,null,null,null,null,null,null,null,null,null,{"$f":"'ETAPE3-énergie'!R29","v":{"$error":"#DIV/0!"}}]
[null,"> Efficacité du système de gestion de l'éclairage",null,null,null,null,null,null,null,null,null,null,null,null,null,{"$f":"'ETAPE3-énergie'!R33","v":1}]
[]
[]
[null,"ETAPE #4 : EVALUATION DE LA VETUSTE DE L'INSTALLATION",null,null,null,null,null,null,null,null,null,null,null,null,null,{"$f":"'ETAPE4-vétusté'!R2","v":2}]
[]
[null,"ETAPE#5 : EVALUATION DE LA MAINTENANCE DE L'INSTALLATION",null,null,null,null,null,null,null,null,null,null,null,null,null,{"$f":"'ETAPE5-maintenance'!R2","v":1}]

{"sheet":"RECOMMANDATIONS","index":7,"n_rows":9,"n_cols":2,"rows_kept":9,"cut":false,"hidden":false,"merged":[[3,0,3,14],[6,1,6,15],[7,1,7,15],[8,1,8,15]]}
[]
[]
[]
["NOS RECOMMANDATIONS"]
[]
[]
[null,{"$f":"IFERROR(IF('arbre decisionnel'!C32=3,'arbre decisionnel'!C53,IF('arbre decisionnel'!C32=2,'arbre decisionnel'!C56,IF('arbre decisionnel'!C32=1,'arbre decisionnel'!C59,IF('arbre decisionnel'!C32=4,'arbre decisionnel'!C50,'arbre decisionnel'!C62)))),\"\")","v":""}]
[null,{"$f":"IFERROR(IF(OR('arbre decisionnel'!C32=3,'arbre decisionnel'!C32=4),'arbre decisionnel'!C54,IF('arbre decisionnel'!C32=2,'arbre decisionnel'!C57,IF('arbre decisionnel'!C32=1,'arbre decisionnel'!C60,'arbre decisionnel'!C63))),\"\")","v":""}]
[null,{"$f":"IFERROR(IF(OR('arbre decisionnel'!C32=3,'arbre decisionnel'!C32=4),'arbre decisionnel'!C55,IF('arbre decisionnel'!C32=2,'arbre decisionnel'!C58,IF('arbre decisionnel'!C32=1,'arbre decisionnel'!C61,'arbre decisionnel'!C64))),\"\")","v":""}]

{"sheet":"RENTABILITE","index":8,"n_rows":4,"n_cols":1,"rows_kept":4,"cut":false,"hidden":false,"merged":[[3,0,3,14]]}
[]
[]
[]
["RENTABILITE D'UN RELIGHTING"]

{"sheet":"arbre decisionnel","index":9,"n_rows":64,"n_cols":10,"rows_kept":64,"cut":false,"hidden":true,"merged":[[33,2,33,9],[61,2,61,7],[62,2,62,7],[63,2,63,7],[55,2,55,6],[56,2,56,6],[58,2,58,6],[59,2,59,6],[60,2,60,6]]}
["CRITERE","PARAMETRE","RESULT_AUDIT","VERDICT","VERDICT","OBJECTIF PARALLELE"]
["sécurité","non-vétusté",{"$f":"'ETAPE4-vétusté'!U2","v":2},"relighting",{"$f":"IF(C2=0,\"- l'installation montre des signes de grande vétusté (critère sécurité)\",\"\")","v":""}]
["confort visuel","niveau lumineux",{"$f":"'ETAPE2-visuel'!U6","v":{"$error":"#DIV/0!"}},"relighting si interventions ponctuelles ne suffisent pas",{"$f":"IF(C3=0,\"- le niveau lumineux du local est trop faible (critère confort visuel)\",\"\")","v":{"$error":"#DIV/0!"}}]
["confort visuel","uniformité",{"$f":"'ETAPE2-visuel'!U55","v":{"$error":"#DIV/0!"}},"relighting si interventions ponctuelles ne suffisent pas",{"$f":"IF(C4=0,\"- l'uniformité des éclairements du local est largement insuffisante (critère confort visuel)\", \"\")","v":{"$error":"#DIV/0!"}}]
["confort visuel","non-éblouissement",{"$f":"'ETAPE2-visuel'!U59","v":0},"relighting si interventions ponctuelles ne suffisent pas",{"$f":"IF(C5=0,\"- le risque d'éblouissement est élevé (critère confort visuel)\", \"\")","v":"- le risque d'éblouissement est élevé (critère confort visuel)"}]
["confort visuel","pas de reflets",{"$f":"'ETAPE2-visuel'!U67","v":1},"interventions ponctuelles ",{"$f":"IF(C6=1,\"des reflets sont présents dans le local\",\"\")","v":"des reflets sont présents dans le local"}]
["confort visuel","pas d'ombres portées",{"$f":"'ETAPE2-visuel'!U76","v":2},"interventions ponctuelles ",{"$f":"IF(C7=1,\"des ombres portées sont perçues, augmentent la fatigue visuelles et peuvent entraîner des situations dangereuses\",\"\")","v":""}]
["confort visuel","rendu des couleurs OK",{"$f":"'ETAPE2-visuel'!U82","v":{"$error":"#VALUE!"}},"interventions ponctuelles ",{"$f":"IF(C8=1, \"le rendu des couleurs n'est pas suffisant\", \"\")","v":{"$error":"#VALUE!"}}]
["confort visuel","coloration OK",{"$f":"'ETAPE2-visuel'!U86","v":1},{"$f":"'ETAPE4-vétusté'!U2","v":2},{"$f":"IF(C9=1, \"- la température de couleur de la lampe n'est pas adaptée au local\", \"\")","v":"- la température de couleur de la lampe n'est pas adaptée au local"},{"$f":"IF(C9=1,\"- utiliser des lampes ayant une température de couleur plus adaptée\",\"\")","v":"- utiliser des lampes ayant une température de couleur plus adaptée"}]
["performance énergétique","puissance installée OK",{"$f":"'ETAPE3-énergie'!U4","v":0},"relighting si interventions ponctuelles ne suffisent pas",{"$f":"IF(C10=0,\"- la puissance spécifique installée peut être fortement réduite par l'utilisation des technologies actuelles (critère performance énergétique)\",\"\")","v":"- la puissance spécifique installée peut être fortement réduite par l'utilisation des technologies actuelles (critère performance énergétique)"}]
["performance énergétique","non-surdimensionnement",{"$f":"'ETAPE3-énergie'!U29","v":{"$error":"#DIV/0!"}},"interventions ponctuelles ",{"$f":"IF(C11=1,\"l'installation d'éclairage est surdimensionnée par rapport aux besoins du local\",\"\")","v":{"$error":"#DIV/0!"}}]
["performance énergétique","gestion efficace",{"$f":"'ETAPE3-énergie'!U33","v":1},"interventions ponctuelles ",{"$f":"IF(C12=1,\"- la gestion de l'éclairage en place n'est pas efficace\",\"\")","v":"- la gestion de l'éclairage en place n'est pas efficace"},{"$f":"IF(C12=1,\"- mettre en place ou améliorer le système de gestion de l'installation qui est actuellement inefficace\",\"\")","v":"- mettre en place ou améliorer le système de gestion de l'installation qui est actuellement inefficace"}]
["confort visuel","niveau lumineux",{"$f":"'ETAPE2-visuel'!U35","v":{"$error":"#DIV/0!"}},"relighting si interventions ponctuelles ne suffisent pas",{"$f":"IF(C13=0,\"- le niveau lumineux du tableau est trop faible (critère confort visuel)\",\"\")","v":{"$error":"#DIV/0!"}}]
["confort visuel","uniformité",{"$f":"'ETAPE2-visuel'!U56","v":{"$error":"#DIV/0!"}},"relighting si interventions ponctuelles ne suffisent pas",{"$f":"IF(C14=0,\"- l'uniformité des éclairements du tableau est largement insuffisante (critère confort visuel)\", \"\")","v":{"$error":"#DIV/0!"}}]
["confort visuel","éclairage du tableau",{"$f":"'ETAPE1-local'!U31","v":2},null,null,{"$f":"IF(C15=0, \"- ajouter un éclairage spécifique du tableau\",\"\")","v":""}]
["maintenance","maintenance",{"$f":"'ETAPE5-maintenance'!U2","v":1},null,null,{"$f":"IF(C16=1,\"- mettre en place ou améliorer le plan de maintenance qui s'avère inefficace\",\"\")","v":"- mettre en place ou améliorer le plan de maintenance qui s'avère inefficace"}]
["confort visuel","couleur du local",{"$f":"'ETAPE1-local'!U23","v":2},null,null,{"$f":"IF(C17=1,\"- repeindre le local dans tes tons plus appropriés\",\"\")","v":""}]
["interventions ponctuelles",null,{"$f":"'ETAPE1-local'!U32","v":0},null,null,null,{"$f":"IF(C18=1,\"- remplacer les lampes à incandescance par des lampes fluo-compactes ou des lampes à LED\",\"\")","v":""}]
["interventions ponctuelles",null,{"$f":"IF('ETAPE3-énergie'!P10=\"T12(38mm)\",1,2)","v":2},null,null,null,{"$f":"IF(C19=1,\"- remplacer les tubes fluorescents T12 (38mm) par des tubes fluo T8 ou une autre source efficace\",\"\")","v":""}]
["interventions ponctuelles",null,{"$f":"'ETAPE2-visuel'!U83","v":{"$error":"#VALUE!"}},null,null,null,{"$f":"IF(C20=1,\"- remplacer les lampes par des lampes ayant une température de couleur plus adéquate\",\"\")","v":{"$error":"#VALUE!"}}]
["interventions ponctuelles",null,{"$f":"'ETAPE2-visuel'!U87","v":1},null,null,null,{"$f":"IF(C21=1,\"- remplacer les lampes par des lampes ayant un indice de rendu des couleur meilleur\",\"\")","v":"- remplacer les lampes par des lampes ayant un indice de rendu des couleur meilleur"}]
["interventions ponctuelles",null,{"$f":"'ETAPE3-énergie'!U29","v":{"$error":"#DIV/0!"}},null,null,null,{"$f":"IF(C22=1,\"- supprimer certaines lampes en veillant à ce que l'uniformité n'en souffre pas excessivement\",\"\")","v":{"$error":"#DIV/0!"}}]
["interventions ponctuelles",null,{"$f":"IF('ETAPE1-local'!P18>4,1,2)","v":2},null,null,null,{"$f":"IF(C23=1,\"- modifier la hauteur de suspension des luminaires\",\"\")","v":""}]
["interventions ponctuelles",null,{"$f":"IF(OR('ETAPE2-visuel'!U55=0,'ETAPE2-visuel'!U56=0,'ETAPE2-visuel'!U59=0,'ETAPE2-visuel'!U77=0,'ETAPE2-visuel'!U78=0),1,2)","v":{"$error":"#DIV/0!"}},null,null,null,{"$f":"IF(C24=1,\"- modifier la position ou l'interdistance des luminaires\",\"\")","v":{"$error":"#DIV/0!"}}]
["interventions ponctuelles",null,{"$f":"IF(OR('ETAPE2-visuel'!U56=0,'ETAPE2-visuel'!U57=0,'ETAPE2-visuel'!U60=0,'ETAPE2-visuel'!U78=0,'ETAPE2-visuel'!U79=0),1,2)","v":{"$error":"#DIV/0!"}},null,null,null,{"$f":"IF(C25=1,\"- modifier le sens des luminaires\",\"\")","v":{"$error":"#DIV/0!"}}]
["interventions ponctuelles",null,{"$f":"IF('ETAPE2-visuel'!U63=0,1,2)","v":1},null,null,null,{"$f":"IF(C26=1,\"- remplacer/replacer les ventelles du luminaire\",\"\")","v":"- remplacer/replacer les ventelles du luminaire"}]
["interventions ponctuelles",null,{"$f":"IF(OR('ETAPE3-énergie'!U35=1,'ETAPE3-énergie'!U36=1,'ETAPE3-énergie'!U37=1,'ETAPE3-énergie'!U38=1),1,2)","v":1},null,null,null,{"$f":"IF(C27=1,\"- sensibiliser les occupants\",\"\")","v":"- sensibiliser les occupants"}]
["interventions ponctuelles",null,{"$f":"IF(OR('ETAPE3-énergie'!U41=1,'ETAPE3-énergie'!U42=1),1,2)","v":1},null,null,null,{"$f":"IF(C28=1,\"- modifier le câblage de la salle de classe pour mettre en place une gestion plus performante\",\"\")","v":"- modifier le câblage de la salle de classe pour mettre en place une gestion plus performante"}]
["interventions ponctuelles",null,{"$f":"IF('ETAPE3-énergie'!U43=1,1,2)","v":1},null,null,null,{"$f":"IF(C29=1,\"- placer des sondes de luminosité au moins sur les luminaire proches des fenêtres et remplacer leur ballast au besoin\",\"\")","v":"- placer des sondes de luminosité au moins sur les luminaire proches des fenêtres et remplacer leur ballast au besoin"}]
["interventions ponctuelles",null,{"$f":"IF(AND(OR('ETAPE2-visuel'!U69=\"non\",'ETAPE2-visuel'!U70=\"non\",'ETAPE2-visuel'!U71=\"non\"),'ETAPE2-visuel'!U60=\"oui\"),1,2)","v":2},null,null,null,{"$f":"IF(C30=1,\"- remplacer le mobilier par du mobilier mat\",\"\")","v":""}]
[]
["VERDICT",null,{"$f":"IF(OR(C2=0,C3=0,C4=0,C5=0,C10=0),0,IF(OR(C3=0,C4=0,C5=0,C10=0),1,IF(OR(C6=1,C7=1,C8=1,C11=1,C12=1,C15=1,C16=1,C17=1),1,IF(OR(C13=0,C14=0),4,3))))","v":{"$error":"#DIV/0!"}}]
[null,null,1]
["intro paragraphe 1","si verdict = 4","Votre installation apparaît être sécure, assurer le niveau de confort visuel général requis et être performante énergétiquement ! \nNéanmoins, l'éclairage spécifique du tableau devrait être amélioré car il n'est pas suffisant."]
[null,"si verdict = 3","Votre installation apparaît être sécure, assurer le niveau de confort visuel requis et être performante énergétiquement !"]
[null,"si verdict = 2","Nous vous recommandons des interventions ponctuelles pour les raisons suivantes:"]
[null,"si verdict = 1","Si des interventions ponctuelles ne suffisent pas à améliorer la situation, un relighting complet sera nécessaire pour les raisons suivantes:"]
[null,"si verdict = 0","Nous vous recommandons un relighting complet de l'installation pour les raisons suivantes:"]
["intro paragraphe 2","si verdict = 4","Lors du prochain remplacement de vos lampes défectueuses, pensez à utiliser une température de couleur plus appropriée au local."]
[null,"si verdict = 3","Lors du prochain remplacement de vos lampes défectueuses, pensez à utiliser une température de couleur plus appropriée au local."]
[null,"si verdict = 2","Les interventions qui pourraient améliorer la situation sont les suivantes:"]
[null,"si verdict = 1","Les interventions qui pourraient améliorer la situation sont les suivantes:"]
[null,"si verdict = 0","Ce relighting complet est par ailleurs l'occasion de:"]
["intro paragraphe 3","si verdict = 4"]
[null,"si verdict = 3"]
[null,"si verdict = 2"]
[null,"si verdict = 1","Si ces interventions ne sont pas suffisantes, le relighting complet sera l'occasion de:"]
[null,"si verdict = 0","Des interventions peuvent par ailleurs dès aujourd'hui être prises pour améliorer la situation actuelle:",null,null,null,null,null,null,{"$f":"IF(C27=1,\"- modifier le câblage de la salle de classe pour mettre en place une gestion plus performante\",\"\")","v":"- modifier le câblage de la salle de classe pour mettre en place une gestion plus performante"}]
[]
[null,"si verdict = 4",{"$f":"C34","v":"Votre installation apparaît être sécure, assurer le niveau de confort visuel général requis et être performante énergétiquement ! \nNéanmoins, l'éclairage spécifique du tableau devrait être amélioré car il n'est pas suffisant."}]
[null,null,{"$f":"IF(C9=1,C39,\"\")","v":"Lors du prochain remplacement de vos lampes défectueuses, pensez à utiliser une température de couleur plus appropriée au local."}]
[null,null,"   "]
[null,"si verdict = 3",{"$f":"C35","v":"Votre installation apparaît être sécure, assurer le niveau de confort visuel requis et être performante énergétiquement !"}]
[null,null,{"$f":"IF(C9=1,C40,\"\")","v":"Lors du prochain remplacement de vos lampes défectueuses, pensez à utiliser une température de couleur plus appropriée au local."}]
[null,null,"   "]
[null,"si verdict = 2",{"$f":"C36&CHAR(10)&E6&CHAR(10)&E7&CHAR(10)&E8&CHAR(10)&E9&CHAR(10)&E11&CHAR(10)&E12","v":{"$error":"#VALUE!"}}]
[null,null,{"$f":"C41&CHAR(10)&G18&CHAR(10)&G19&CHAR(10)&G20&CHAR(10)&G21&CHAR(10)&G22&CHAR(10)&G23&CHAR(10)&G24&CHAR(10)&G25&CHAR(10)&G26&CHAR(10)&G27&CHAR(10)&G28&CHAR(10)&G29","v":{"$error":"#VALUE!"}}]
[]
[null,"si verdict = 1",{"$f":"C37&CHAR(10)&E2&CHAR(10)&E3&CHAR(10)&E4&CHAR(10)&E5&CHAR(10)&E10","v":{"$error":"#DIV/0!"}}]
[null,null,{"$f":"C42&CHAR(10)&G18&CHAR(10)&G19&CHAR(10)&G20&CHAR(10)&G21&CHAR(10)&G22&CHAR(10)&G23&CHAR(10)&G24&CHAR(10)&G25&CHAR(10)&G26&CHAR(10)&G27","v":{"$error":"#VALUE!"}}]
[null,null,{"$f":"C47&CHAR(10)&E2&CHAR(10)&E3&CHAR(10)&E4&CHAR(10)&E5&CHAR(10)&E10","v":{"$error":"#DIV/0!"}}]
[null,"si verdict = 0",{"$f":"C38&CHAR(10)&E2&CHAR(10)&E3&CHAR(10)&E4&CHAR(10)&E5&CHAR(10)&E10","v":{"$error":"#DIV/0!"}}]
[null,null,{"$f":"C43&CHAR(10)&F6&CHAR(10)&F7&CHAR(10)&F8&CHAR(10)&F9&CHAR(10)&F11&CHAR(10)&F12&CHAR(10)&F15&CHAR(10)&F16&CHAR(10)&F17","v":"Ce relighting complet est par ailleurs l'occasion de:\n\n\n\n- utiliser des lampes ayant une température de couleur plus adaptée\n\n- mettre en place ou améliorer le système de gestion de l'installation qui est actuellement inefficace\n\n- mettre en place ou améliorer le plan de maintenance qui s'avère inefficace\n"}]
[null,null,{"$f":"C48&CHAR(10)&G18&CHAR(10)&G19&CHAR(10)&G20&CHAR(10)&G21&CHAR(10)&G22&CHAR(10)&G23&CHAR(10)&G24&CHAR(10)&G25&CHAR(10)&G26&CHAR(10)&G27","v":{"$error":"#VALUE!"}}]

{"sheet":"rentabilité","index":10,"n_rows":108,"n_cols":28,"rows_kept":108,"cut":false,"hidden":true,"merged":[[0,4,0,5],[0,6,0,7],[0,8,0,9],[0,10,0,11]]}
["prix HTVA ? ",null,null,"SITUATION\nEXISTANTE\n(+ hypothèse niveau lum recommandé atteint)","SITUATION\nPROJETEE n°1\nrelighting T5 \nsans dimming",null,"SITUATION\nPROJETEE n°2\nrelighting T5 \navec dimming",null,"SITUATION\nPROJETEE n°3\nrelamping tubes LED \nsans dimming",null,"SITUATION\nPROJETEE n°4\nrelighting LED\navec dimming"]
[null,null,null,null,"relighting T5\nsans dimming\nbon marché","relighting T5\nsans dimming\nprix élevé","relighting T5\navec dimming\nbon marché","relighting T5\navec dimming\nprix élevé","relamping tubes LED\nsans dimming\nbon marché","relamping tubes LED\nsans dimming\nprix élevé","relighting LED\navec dimming\nbon marché","relighting LED\navec dimming\nprix élevé"]
[null,null,"unités",null,"matériel\nbon marché","matériel\nprix élevé","matériel\nbon marché","matériel\nprix élevé","matériel\nbon marché","matériel\nprix élevé","matériel\nbon marché","matériel\nprix élevé"]
["CARACTERISTIQUE DU LOCAL"]
["type de local",null,null,{"$f":"'ETAPE1-local'!G8","v":0},{"$f":"D5","v":0},{"$f":"E5","v":0},0,0,0,0,0,0]
["eclairement maintenu",null,"lx",{"$f":"IF(OR(D5=\"CLASSE MATERNELLE\",D5=\"CLASSE PRIMAIRE\",D5=\"CLASSE SECONDAIRE\"),300,IF(OR(D5=\"CLASSE ADULTES\",D5=\"BUREAUX\"),500,\"\"))","v":""},{"$f":"IF(OR(E5=\"CLASSE MATERNELLE\",E5=\"CLASSE PRIMAIRE\",E5=\"CLASSE SECONDAIRE\"),300,IF(OR(E5=\"CLASSE ADULTES\",E5=\"BUREAUX\"),500,\"\"))","v":""},"","","","","","",""]
["puissance spécifique atteingnable dans ce type de local",null,"W/m²/100lx",1.5,1.5,1.5,1.5,1.5,1.5,1.5,1.5,1.5]
["dimming? ",null,null,{"$f":"IF('ETAPE3-énergie'!P13=0,\"non\",\"oui\")","v":"non"},"non","non","oui","oui","non","non","oui","oui"]
["nombre d'heure d'allumage par an",null,"heures/an",{"$f":"IF(D8=\"oui\",500,1250)","v":1250},{"$f":"IF(E8=\"oui\",500,1250)","v":1250},1250,500,500,1250,1250,500,500]
["durée de vie estimée de l'installation d'éclairage (années)",null,"ans",30,30,30,30,30,30,30,30,30]
["surface du local",null,"m²",{"$f":"'ETAPE1-local'!P20","v":0},{"$f":"$D$11","v":0},{"$f":"$D$11","v":0},0,0,0,0,0,0]
["CARACTERISTIQUE DE l'INSTALLATION"]
["nombre de luminaires",null,null,{"$f":"'ETAPE3-énergie'!P6","v":0},{"$f":"D13","v":0},{"$f":"E13","v":0},0,{"$f":"G13","v":0},0,{"$f":"I13","v":0},0,{"$f":"K13","v":0}]
["type de lampes",null,null,{"$f":"'ETAPE3-énergie'!P10","v":0},"T5",{"$f":"E14","v":"T5"},"T5",{"$f":"G14","v":"T5"},"TLED",{"$f":"I14","v":"TLED"},"luminaires LED",{"$f":"K14","v":"luminaires LED"}]
["nombre de lampes par luminaire",null,null,{"$f":"'ETAPE3-énergie'!P8","v":0},1,{"$f":"E15","v":1},1,{"$f":"G15","v":1},2,{"$f":"I15","v":2},1,{"$f":"K15","v":1}]
["nombre de ballast par luminaire",null,null,{"$f":"'ETAPE3-énergie'!P9","v":0},1,{"$f":"E16","v":1},1,{"$f":"G16","v":1},0,{"$f":"I16","v":0},0,{"$f":"K16","v":0}]
["puissance d'un lampe",null,null,{"$f":"'ETAPE3-énergie'!P11","v":0},35,{"$f":"E17","v":35},35,{"$f":"G17","v":35},16,{"$f":"I17","v":16},26,{"$f":"K17","v":26}]
["type de ballast",null,null,{"$f":"'ETAPE3-énergie'!P12","v":0},"electronique",{"$f":"E18","v":"electronique"},"electronique \ndimmable","electronique \ndimmable","driver LED","driver LED","driver LED","driver LED"]
["facteur de perte du ballast",null,null,{"$f":"IF(D18=\"électromagnétique\",1.2,IF(D18=\"driver LED\",1,1.1))","v":1.1000000000000001},1.1000000000000001,1.1000000000000001,1.1000000000000001,1.1000000000000001,1,1,1,{"$f":"IF(L18=\"électromagnétique\",1.2,IF(L18=\"driver LED\",1,1.1))","v":1}]
["puissance installée dans le local",null,"W",{"$f":"D17*D19*D15*D13","v":0},0,0,0,0,0,0,0,0]
["puissance spécifique",null,"W/m²/100lx",{"$f":"D20/D11/D6*100","v":{"$error":"#DIV/0!"}},{"$error":"#DIV/0!"},{"$error":"#DIV/0!"},{"$error":"#DIV/0!"},{"$error":"#DIV/0!"},{"$error":"#DIV/0!"},{"$error":"#DIV/0!"},{"$error":"#DIV/0!"},{"$error":"#DIV/0!"}]
["COUT DE LA CONSOMMATION ENERGETIQUE"]
["puissance installée dans le local",null,"W",{"$f":"D20","v":0},0,0,0,0,0,0,0,0]
["nombre d'heure d'allumage par an","salle de classe: occupant actif : 1000; passif: 1500; si dimming: 500","heures/an",{"$f":"D9","v":1250},1250,1250,500,500,1250,1250,500,{"$f":"L9","v":500}]
["conso totale annuelle",null,"kWh/an",{"$f":"D23*D24/1000","v":0},0,0,0,0,0,0,0,0]
["cout du kWh",null,"euros/kWh",{"$f":"'ETAPE1-local'!P34","v":""},{"$f":"$D$26","v":""},{"$f":"$D$26","v":""},"","","","","",""]
["COUT ANNUEL DE LA CONSOMMATION",null,"euros/an",{"$f":"D25*D26","v":{"$error":"#VALUE!"}},{"$error":"#VALUE!"},{"$error":"#VALUE!"},{"$error":"#VALUE!"},{"$error":"#VALUE!"},{"$error":"#VALUE!"},{"$error":"#VALUE!"},{"$error":"#VALUE!"},{"$error":"#VALUE!"}]
["ECONOMIE sur la consommation annuelle d'un local",null,"euros/an",null,{"$f":"$D27-E27","v":{"$error":"#VALUE!"}},{"$f":"$D27-F27","v":{"$error":"#VALUE!"}},{"$f":"$D27-G27","v":{"$error":"#VALUE!"}},{"$error":"#VALUE!"},{"$error":"#VALUE!"},{"$error":"#VALUE!"},{"$error":"#VALUE!"},{"$error":"#VALUE!"}]
["COUT DE LA MAINTENANCE"]
["materiel"]
["cout d'une lampe",null,null,8,10,10,10,10,30,55]
["durée de vie utile annoncée par le fabricant",null,null,12000,21000,21000,21000,21000,40000,40000]
["durée de vie pour un facteur de maintenance de 85%",null,null,8000,15000,15000,15000,15000,15000,15000]
["heures allumées sur la durée de vie totale de l'installation (heures)",null,null,{"$f":"D10*D9","v":37500},37500,37500,15000,15000,37500,37500]
["nombre d'heure d'allumage par an",null,"heures/an",{"$f":"D24","v":1250},1250,1250,500,500,1250,1250]
["nombre de remplacement des lampes sur la durée de vie de l'installation",null,null,{"$f":"(D34/D33)-1","v":3.6875},{"$f":"(E34/E33)-1","v":1.5},{"$f":"(F34/F33)-1","v":1.5},{"$f":"(G34/G33)-1","v":0},0,1.5,1.5]
["nombre de lampes par local",null,null,{"$f":"D13*D15","v":0},{"$f":"E13*E15","v":0},{"$f":"F13*F15","v":0},{"$f":"G13*G15","v":0},0,0,0]
["cout de remplacement sur la durée de vie de l'installation",null,null,{"$f":"D36*D37*D31","v":0},{"$f":"E36*E37*E31","v":0},{"$f":"F36*F37*F31","v":0},{"$f":"G36*G37*G31","v":0},0,0,0]
["cout de remplacement annuel",null,null,{"$f":"D38/D10","v":0},0,0,0,0,0,0]
["ECONOMIE sur l'achat des lampes",null,null,null,{"$f":"$D39-E39","v":0},{"$f":"$D39-F39","v":0},{"$f":"$D39-G39","v":0},0,0,0]
["main d'œuvre"]
["cout horaire de la main d'œuvre",null,null,40,40,40,40,40,40,40]
["nombre de remplacement des lampes sur la durée de vie de l'installation",null,null,{"$f":"D36","v":3.6875},{"$f":"E36","v":1.5},1.5,0,0,1.5,1.5]
["nombre de lampes par local",null,null,{"$f":"D37","v":0},0,0,0,0,0,0]
["temps d'intervention remplacement ponctuel d'une lampe",null,null,0.5,0.5,0.5,0.5,0.5,0.5,0.5]
["cout de la main d'œuvre pour le remplacement sur la durée de vie de l'installation",null,null,{"$f":"D43*D44*D45*D42","v":0},{"$f":"E43*E44*E45*E42","v":0},0,0,0,0,0]
["cout annuel du remplacement des lampes du local",null,null,{"$f":"D46/D10","v":0},0,0,0,0,0,0]
["économie sur la main d'œuvre",null,null,null,{"$f":"$D47-E47","v":0},{"$f":"$D47-F47","v":0},{"$f":"B47-G47","v":0},{"$f":"D47-H47","v":0},{"$f":"D47-I47","v":0},{"$f":"D47-J47","v":0}]
["COUT ANNUEL DE LA MAINTENANCE",null,null,{"$f":"D47+D39","v":0},{"$f":"E47+E39","v":0},{"$f":"F47+F39","v":0},0,0,0,0]
["ECONOMIE sur la maintenance",null,"euros/an",null,{"$f":"$D49-E49","v":0},{"$f":"$D49-F49","v":0},{"$f":"$D49-G49","v":0},0,0,0,0,0]
["INVESTISSEMENT INITIAL"]
["lampes"]
["cout d'une lampe",null,null,null,{"$f":"E31","v":10},10,10,10,30,55]
["nombre de lampes",null,null,null,{"$f":"E13*E15","v":0},0,0,0,0,0]
["sous-TOTAL",null,"euros",null,{"$f":"E53*E54","v":0},{"$f":"F53*F54","v":0},{"$f":"G53*G54","v":0},0,0,0,0,0]
["luminaires"]
["cout d'un luminaire",null,null,null,180,240,180,240,null,null,150,310]
["nombre de luminaires",null,null,null,{"$f":"E13","v":0},{"$f":"F13","v":0},0,0,null,null,0,0]
["cout d'une sonde",null,null,null,0,0,50,50,null,null,50,50]
["nombre de sondes (détection de présence et/ou luminosité)",null,null,null,0,0,1,1,null,null,1,1]
["sous-TOTAL",null,"euros",null,{"$f":"E57*E58+E59*E60","v":0},{"$f":"F57*F58+F59*F60","v":0},{"$f":"G57*G58+G59*G60","v":50},50,0,0,50,50]
["main d'œuvre (montage / démontage de l'installation)"]
["taux horaire de la main d'œuvre",null,null,null,{"$f":"E42","v":40},40,40,40,40,40,40,40]
["temps pour démonter un luminaire",null,null,null,{"$f":"1/3","v":0.33333333333333331},0.33333333333333331,0.33333333333333331,0.33333333333333331,0.33333333333333331,0.33333333333333331,0.33,{"$f":"1/3","v":0.33333333333333331}]
["nombre de luminaires",null,null,null,{"$f":"E13","v":0},{"$f":"F13","v":0},0,0,0,0,0,0]
["cout du démontage",null,null,null,{"$f":"E63*E64*E65","v":0},0,0,0,0,0,{"$f":"K63*K64*K65","v":0},{"$f":"L63*L64*L65","v":0}]
["temps pour monter un luminaire",null,null,null,0.75,0.75,0.75,0.75,0.75,0.75,0.75,0.75]
["cout du montage",null,null,null,{"$f":"E67*E63*E58","v":0},{"$f":"F67*F63*F58","v":0},{"$f":"G67*G63*G58","v":0},{"$f":"H67*H63*H58","v":0},{"$f":"I67*I63*I65","v":0},{"$f":"J67*J63*J65","v":0},{"$f":"K67*K63*K65","v":0},{"$f":"L67*L63*L65","v":0}]
["sous-TOTAL",null,"euros",null,{"$f":"E68+E66","v":0},0,0,0,0,0,0,0]
["TEMPS DE RETOUR *"]
["COUT TOTAL de  l'INVESTISSEMENT",null,null,"investissement",{"$f":"E61+E69+E55","v":0},{"$f":"F61+F69+F55","v":0},50,50,0,{"$f":"J61+J69+J55","v":0},50,50]
["ECONOMIE ANNUELLE sur les couts de CONSOMMATION et MAINTENANCE",null,null,"économie annuelle",{"$f":"E28+E50","v":{"$error":"#VALUE!"}},{"$error":"#VALUE!"},{"$error":"#VALUE!"},{"$error":"#VALUE!"},{"$error":"#VALUE!"},{"$error":"#VALUE!"},{"$error":"#VALUE!"},{"$error":"#VALUE!"}]
["TEMPS DE RETOUR sur l'investissement",null,null,"TRI (années)",{"$f":"IF(E78>0,$C78,IF(E79>0,$C79,IF(E80>0,$C80,IF(E81>0,$C81,IF(E82>0,$C82,IF(E83>0,$C83,IF(E84>0,$C84,IF(E85>0,$C85,IF(E86>0,$C86,IF(E87>0,$C87,IF(E88>0,$C88,IF(E89>0,$C89,IF(E90>0,$C90,IF(E91>0,$C91,IF(E92>0,$C92,IF(E93>0,$C93,IF(E94>0,$C94,IF(E95>0,$C95,IF(E96>0,$C96,IF(E97>0,$C97,IF(E98>0,$C98,IF(E99>0,$C99,IF(E100>0,$C100,IF(E101>0,$C101,IF(E102>0,$C102,IF(E103>0,$C103,IF(E104>0,$C104,IF(E105>0,$C105,IF(E106>0,$C106,IF(E107>0,$C107,\"> 30 ans\"))))))))))))))))))))))))))))))","v":{"$error":"#VALUE!"}},{"$f":"IF(F78>0,$C78,IF(F79>0,$C79,IF(F80>0,$C80,IF(F81>0,$C81,IF(F82>0,$C82,IF(F83>0,$C83,IF(F84>0,$C84,IF(F85>0,$C85,IF(F86>0,$C86,IF(F87>0,$C87,IF(F88>0,$C88,IF(F89>0,$C89,IF(F90>0,$C90,IF(F91>0,$C91,IF(F92>0,$C92,IF(F93>0,$C93,IF(F94>0,$C94,IF(F95>0,$C95,IF(F96>0,$C96,IF(F97>0,$C97,IF(F98>0,$C98,IF(F99>0,$C99,IF(F100>0,$C100,IF(F101>0,$C101,IF(F102>0,$C102,IF(F103>0,$C103,IF(F104>0,$C104,IF(F105>0,$C105,IF(F106>0,$C106,IF(F107>0,$C107,\"> 30 ans\"))))))))))))))))))))))))))))))","v":{"$error":"#VALUE!"}},{"$error":"#VALUE!"},{"$error":"#VALUE!"},{"$error":"#VALUE!"},{"$error":"#VALUE!"},{"$error":"#VALUE!"},{"$error":"#VALUE!"}]
["BENEFICE sur la durée de vie totale de l'installation (estimée à 30 ans)",null,null,"bénéfice (30 ans)",{"$f":"E107","v":{"$error":"#VALUE!"}},{"$f":"F107","v":{"$error":"#VALUE!"}},{"$error":"#VALUE!"},{"$error":"#VALUE!"},{"$error":"#VALUE!"},{"$error":"#VALUE!"},{"$error":"#VALUE!"},{"$error":"#VALUE!"}]
["CONSOMMATION en kWh  sur la durée de vie totale de l'installation (estimée à 30 ans)",null,null,"kWh consommés (30 ans)",{"$f":"30*E25","v":0},{"$f":"30*F25","v":0},0,0,0,0,0,0]
["* avec prise en compte de l'augmentation du prix de l'électricité",null,null,null,"T5 sans dimming",null,"T5 avec dimming",null,"tubes LED",null,"luminaires LED"]
[null,null,0,null,{"$f":"((1-((1.02)^($C77+1)))/(1-1.02))*E$28-E$71+$C77*E$50","v":{"$error":"#VALUE!"}},{"$f":"((1-((1.02)^($C77+1)))/(1-1.02))*F$28-F$71+$C77*F$50","v":{"$error":"#VALUE!"}},{"$error":"#VALUE!"},{"$error":"#VALUE!"},{"$error":"#VALUE!"},{"$error":"#VALUE!"},{"$error":"#VALUE!"},{"$error":"#VALUE!"},null,null,null,null,"date","min","max","cloture","date","min","max","cloture","date","min","max","cloture"]
[null,null,1,null,{"$error":"#VALUE!"},{"$f":"((1-((1.02)^($C78+1)))/(1-1.02))*F$28-F$71+$C78*F$50","v":{"$error":"#VALUE!"}},{"$error":"#VALUE!"},{"$error":"#VALUE!"},{"$error":"#VALUE!"},{"$error":"#VALUE!"},{"$error":"#VALUE!"},{"$error":"#VALUE!"},null,null,null,null,"T5 sans dimming",{"$f":"E73","v":{"$error":"#VALUE!"}},{"$f":"F73","v":{"$error":"#VALUE!"}},null,"T5 sans dimming",{"$f":"-E71","v":0},{"$f":"-F71","v":0},null,"T5 sans dimming",{"$f":"E107","v":{"$error":"#VALUE!"}},{"$f":"F107","v":{"$error":"#VALUE!"}}]
[null,null,2,null,{"$error":"#VALUE!"},{"$error":"#VALUE!"},{"$error":"#VALUE!"},{"$error":"#VALUE!"},{"$error":"#VALUE!"},{"$error":"#VALUE!"},{"$error":"#VALUE!"},{"$error":"#VALUE!"},null,null,null,null,"T5 avec dimming",{"$f":"G73","v":{"$error":"#VALUE!"}},{"$f":"H73","v":{"$error":"#VALUE!"}},null,"T5 avec dimming",{"$f":"-G71","v":-50},{"$f":"-H71","v":-50},null,"T5 avec dimming",{"$f":"G107","v":{"$error":"#VALUE!"}},{"$f":"H107","v":{"$error":"#VALUE!"}}]
[null,null,3,null,{"$error":"#VALUE!"},{"$error":"#VALUE!"},{"$error":"#VALUE!"},{"$error":"#VALUE!"},{"$error":"#VALUE!"},{"$error":"#VALUE!"},{"$error":"#VALUE!"},{"$error":"#VALUE!"},null,null,null,null,"tubes LED",{"$f":"I73","v":{"$error":"#VALUE!"}},{"$f":"J73","v":{"$error":"#VALUE!"}},null,"tubes LED",{"$f":"-I71","v":0},{"$f":"-J71","v":0},null,"tubes LED",{"$f":"I107","v":{"$error":"#VALUE!"}},{"$f":"J107","v":{"$error":"#VALUE!"}}]
[null,null,4,null,{"$error":"#VALUE!"},{"$error":"#VALUE!"},{"$error":"#VALUE!"},{"$error":"#VALUE!"},{"$error":"#VALUE!"},{"$error":"#VALUE!"},{"$error":"#VALUE!"},{"$error":"#VALUE!"},null,null,null,null,"luminaires LED",{"$f":"K73","v":{"$error":"#VALUE!"}},{"$f":"L73","v":{"$error":"#VALUE!"}},null,"luminaires LED",{"$f":"-K71","v":-50},{"$f":"-L71","v":-50},null,"luminaires LED",{"$f":"K107","v":{"$error":"#VALUE!"}},{"$f":"L107","v":{"$error":"#VALUE!"}}]
[null,null,5,null,{"$error":"#VALUE!"},{"$error":"#VALUE!"},{"$error":"#VALUE!"},{"$error":"#VALUE!"},{"$error":"#VALUE!"},{"$error":"#VALUE!"},{"$error":"#VALUE!"},{"$error":"#VALUE!"}]
[null,null,6,null,{"$error":"#VALUE!"},{"$error":"#VALUE!"},{"$error":"#VALUE!"},{"$error":"#VALUE!"},{"$error":"#VALUE!"},{"$error":"#VALUE!"},{"$error":"#VALUE!"},{"$error":"#VALUE!"}]
[null,null,7,null,{"$error":"#VALUE!"},{"$error":"#VALUE!"},{"$error":"#VALUE!"},{"$error":"#VALUE!"},{"$error":"#VALUE!"},{"$error":"#VALUE!"},{"$error":"#VALUE!"},{"$error":"#VALUE!"}]
[null,null,8,null,{"$error":"#VALUE!"},{"$error":"#VALUE!"},{"$error":"#VALUE!"},{"$error":"#VALUE!"},{"$error":"#VALUE!"},{"$error":"#VALUE!"},{"$error":"#VALUE!"},{"$error":"#VALUE!"}]
[null,null,9,null,{"$error":"#VALUE!"},{"$error":"#VALUE!"},{"$error":"#VALUE!"},{"$error":"#VALUE!"},{"$error":"#VALUE!"},{"$error":"#VALUE!"},{"$error":"#VALUE!"},{"$error":"#VALUE!"}]
[null,null,10,null,{"$error":"#VALUE!"},{"$error":"#VALUE!"},{"$error":"#VALUE!"},{"$error":"#VALUE!"},{"$error":"#VALUE!"},{"$error":"#VALUE!"},{"$error":"#VALUE!"},{"$error":"#VALUE!"}]
[null,null,11,null,{"$error":"#VALUE!"},{"$f":"((1-((1.02)^($C88+1)))/(1-1.02))*F$28-F$71+$C88*F$50","v":{"$error":"#VALUE!"}},{"$error":"#VALUE!"},{"$error":"#VALUE!"},{"$error":"#VALUE!"},{"$error":"#VALUE!"},{"$error":"#VALUE!"},{"$error":"#VALUE!"}]
[null,null,12,null,{"$error":"#VALUE!"},{"$error":"#VALUE!"},{"$error":"#VALUE!"},{"$error":"#VALUE!"},{"$error":"#VALUE!"},{"$error":"#VALUE!"},{"$error":"#VALUE!"},{"$error":"#VALUE!"}]
[null,null,13,null,{"$error":"#VALUE!"},{"$error":"#VALUE!"},{"$error":"#VALUE!"},{"$error":"#VALUE!"},{"$error":"#VALUE!"},{"$error":"#VALUE!"},{"$error":"#VALUE!"},{"$error":"#VALUE!"}]
[null,null,14,null,{"$error":"#VALUE!"},{"$error":"#VALUE!"},{"$error":"#VALUE!"},{"$error":"#VALUE!"},{"$error":"#VALUE!"},{"$error":"#VALUE!"},{"$error":"#VALUE!"},{"$error":"#VALUE!"}]
[null,null,15,null,{"$error":"#VALUE!"},{"$error":"#VALUE!"},{"$error":"#VALUE!"},{"$error":"#VALUE!"},{"$error":"#VALUE!"},{"$error":"#VALUE!"},{"$error":"#VALUE!"},{"$error":"#VALUE!"}]
[null,null,16,null,{"$error":"#VALUE!"},{"$error":"#VALUE!"},{"$error":"#VALUE!"},{"$error":"#VALUE!"},{"$error":"#VALUE!"},{"$error":"#VALUE!"},{"$error":"#VALUE!"},{"$error":"#VALUE!"}]
[null,null,17,null,{"$error":"#VALUE!"},{"$error":"#VALUE!"},{"$error":"#VALUE!"},{"$error":"#VALUE!"},{"$error":"#VALUE!"},{"$error":"#VALUE!"},{"$error":"#VALUE!"},{"$error":"#VALUE!"}]
[null,null,18,null,{"$error":"#VALUE!"},{"$error":"#VALUE!"},{"$error":"#VALUE!"},{"$error":"#VALUE!"},{"$error":"#VALUE!"},{"$error":"#VALUE!"},{"$error":"#VALUE!"},{"$error":"#VALUE!"}]
[null,null,19,null,{"$error":"#VALUE!"},{"$error":"#VALUE!"},{"$error":"#VALUE!"},{"$error":"#VALUE!"},{"$error":"#VALUE!"},{"$error":"#VALUE!"},{"$error":"#VALUE!"},{"$error":"#VALUE!"}]
[null,null,20,null,{"$error":"#VALUE!"},{"$error":"#VALUE!"},{"$error":"#VALUE!"},{"$error":"#VALUE!"},{"$error":"#VALUE!"},{"$error":"#VALUE!"},{"$error":"#VALUE!"},{"$error":"#VALUE!"}]
[null,null,21,null,{"$error":"#VALUE!"},{"$f":"((1-((1.02)^($C98+1)))/(1-1.02))*F$28-F$71+$C98*F$50","v":{"$error":"#VALUE!"}},{"$error":"#VALUE!"},{"$error":"#VALUE!"},{"$error":"#VALUE!"},{"$error":"#VALUE!"},{"$error":"#VALUE!"},{"$error":"#VALUE!"}]
[null,null,22,null,{"$error":"#VALUE!"},{"$error":"#VALUE!"},{"$error":"#VALUE!"},{"$error":"#VALUE!"},{"$error":"#VALUE!"},{"$error":"#VALUE!"},{"$error":"#VALUE!"},{"$error":"#VALUE!"}]
[null,null,23,null,{"$error":"#VALUE!"},{"$error":"#VALUE!"},{"$error":"#VALUE!"},{"$error":"#VALUE!"},{"$error":"#VALUE!"},{"$error":"#VALUE!"},{"$error":"#VALUE!"},{"$error":"#VALUE!"}]
[null,null,24,null,{"$error":"#VALUE!"},{"$error":"#VALUE!"},{"$error":"#VALUE!"},{"$error":"#VALUE!"},{"$error":"#VALUE!"},{"$error":"#VALUE!"},{"$error":"#VALUE!"},{"$error":"#VALUE!"}]
[null,null,25,null,{"$error":"#VALUE!"},{"$error":"#VALUE!"},{"$error":"#VALUE!"},{"$error":"#VALUE!"},{"$error":"#VALUE!"},{"$error":"#VALUE!"},{"$error":"#VALUE!"},{"$error":"#VALUE!"}]
[null,null,26,null,{"$error":"#VALUE!"},{"$error":"#VALUE!"},{"$error":"#VALUE!"},{"$error":"#VALUE!"},{"$error":"#VALUE!"},{"$error":"#VALUE!"},{"$error":"#VALUE!"},{"$error":"#VALUE!"}]
[null,null,27,null,{"$error":"#VALUE!"},{"$error":"#VALUE!"},{"$error":"#VALUE!"},{"$error":"#VALUE!"},{"$error":"#VALUE!"},{"$error":"#VALUE!"},{"$error":"#VALUE!"},{"$error":"#VALUE!"}]
[null,null,28,null,{"$error":"#VALUE!"},{"$error":"#VALUE!"},{"$error":"#VALUE!"},{"$error":"#VALUE!"},{"$error":"#VALUE!"},{"$error":"#VALUE!"},{"$error":"#VALUE!"},{"$error":"#VALUE!"}]
[null,null,29,null,{"$error":"#VALUE!"},{"$error":"#VALUE!"},{"$error":"#VALUE!"},{"$error":"#VALUE!"},{"$error":"#VALUE!"},{"$error":"#VALUE!"},{"$error":"#VALUE!"},{"$error":"#VALUE!"}]
[null,null,30,null,{"$error":"#VALUE!"},{"$error":"#VALUE!"},{"$error":"#VALUE!"},{"$error":"#VALUE!"},{"$error":"#VALUE!"},{"$error":"#VALUE!"},{"$error":"#VALUE!"},{"$error":"#VALUE!"}]
[null,null,"check",null,{"$f":"E28*42.4+E50*30-E71","v":{"$error":"#VALUE!"}},{"$error":"#VALUE!"},{"$error":"#VALUE!"},{"$error":"#VALUE!"},{"$error":"#VALUE!"},{"$error":"#VALUE!"},{"$error":"#VALUE!"},{"$error":"#VALUE!"}]

{"sheet":"graphes","index":11,"n_rows":53,"n_cols":4,"rows_kept":53,"cut":false,"hidden":true,"merged":[]}
["investissement","Max","Min","Clôture"]
[{"$f":"rentabilité!E1","v":"SITUATION\nPROJETEE n°1\nrelighting T5 \nsans dimming"},{"$f":"rentabilité!F71","v":0},{"$f":"rentabilité!E71","v":0}]
[{"$f":"rentabilité!G1","v":"SITUATION\nPROJETEE n°2\nrelighting T5 \navec dimming"},{"$f":"rentabilité!H71","v":50},{"$f":"rentabilité!G71","v":50}]
[{"$f":"rentabilité!I1","v":"SITUATION\nPROJETEE n°3\nrelamping tubes LED \nsans dimming"},{"$f":"rentabilité!J71","v":0},{"$f":"rentabilité!I71","v":0}]
[{"$f":"rentabilité!K1","v":"SITUATION\nPROJETEE n°4\nrelighting LED\navec dimming"},{"$f":"rentabilité!L71","v":50},{"$f":"rentabilité!K71","v":50}]
[]
[]
[]
[]
[]
[]
[]
[]
[]
[]
[]
["TRI (années)","Max","Min","Clôture"]
["SITUATION\nPROJETEE n°1\nrelighting T5 \nsans dimming",{"$f":"rentabilité!F73","v":{"$error":"#VALUE!"}},{"$f":"rentabilité!E73","v":{"$error":"#VALUE!"}}]
["SITUATION\nPROJETEE n°2\nrelighting T5 \navec dimming",{"$f":"rentabilité!H73","v":{"$error":"#VALUE!"}},{"$f":"rentabilité!G73","v":{"$error":"#VALUE!"}}]
["SITUATION\nPROJETEE n°3\nrelamping tubes LED \nsans dimming",{"$f":"rentabilité!J73","v":{"$error":"#VALUE!"}},{"$f":"rentabilité!I73","v":{"$error":"#VALUE!"}}]
["SITUATION\nPROJETEE n°4\nrelighting LED\navec dimming",{"$f":"rentabilité!L73","v":{"$error":"#VALUE!"}},{"$f":"rentabilité!K73","v":{"$error":"#VALUE!"}}]
[]
[]
[]
[]
[]
[]
[]
[]
[]
[]
[]
["bénéfice (30 ans)","Max","Min","Clôture"]
["SITUATION\nPROJETEE n°1\nrelighting T5 \nsans dimming",{"$f":"rentabilité!E74","v":{"$error":"#VALUE!"}},{"$f":"rentabilité!F74","v":{"$error":"#VALUE!"}}]
["SITUATION\nPROJETEE n°2\nrelighting T5 \navec dimming",{"$f":"rentabilité!G74","v":{"$error":"#VALUE!"}},{"$f":"rentabilité!H74","v":{"$error":"#VALUE!"}}]
["SITUATION\nPROJETEE n°3\nrelamping tubes LED \nsans dimming",{"$f":"rentabilité!I74","v":{"$error":"#VALUE!"}},{"$f":"rentabilité!J74","v":{"$error":"#VALUE!"}}]
["SITUATION\nPROJETEE n°4\nrelighting LED\navec dimming",{"$f":"rentabilité!K74","v":{"$error":"#VALUE!"}},{"$f":"rentabilité!L74","v":{"$error":"#VALUE!"}}]
[]
[]
[]
[]
[]
[]
[]
[]
[]
[]
[]
["kWh consommés (30 ans)","Max","Min","Clôture"]
["SITUATION\nPROJETEE n°1\nrelighting T5 \nsans dimming",{"$f":"rentabilité!E75","v":0},{"$f":"B50+1","v":1}]
["SITUATION\nPROJETEE n°2\nrelighting T5 \navec dimming",{"$f":"rentabilité!G75","v":0},{"$f":"B51+1","v":1}]
["SITUATION\nPROJETEE n°3\nrelamping tubes LED \nsans dimming",{"$f":"rentabilité!I75","v":0},1]
["SITUATION\nPROJETEE n°4\nrelighting LED\navec dimming",{"$f":"rentabilité!L75","v":0},1]